Cogmind - Beta 15 @@@ ROGUE MODE // 2025.05.15 @ 23:06:16 Player: 0_0 Result: Destroyed by P-60 Hacker with Shock Rifle Performance ------------- Evolutions (2) 1000 Regions Visited (4) 800 Robots Destroyed (20) 100 Value Destroyed (366) 366 Prototype IDs (2) 40 Alien Tech Used (0) 0 Bonus (357) 357 TOTAL SCORE: 2663 Bonus ------- Follower Combat Kills 176 Entered Garrisons 200 Friendly Fire -19 Cogmind --------- Core Integrity 0/550 Matter 285/300 Energy 104/125 System Corruption 1% Temperature Warm (192) Movement Core (100) Ox1 Location -8/Garrison Parts ------- > --- POWER (2) -------- Light Ion Engine > --- PROPULSION (2) --- (None) > --- UTILITY (4) ------ Heat Sink Targeting Computer ECM Suite > --- WEAPON (3) ------- (None) > --- INVENTORY (5) ---- Medium Matter Pod (100) Signal Interpreter Peak State ------------ > --- POWER ------------ Ion Engine Improved Ion Engine > --- PROPULSION ------- Wheel Wheel > --- UTILITY ---------- Small Storage Unit Subdweller Optics Sensor Array ECM Suite > --- WEAPON ----------- Medium Laser Medium Laser Minigun > --- INVENTORY -------- Light Ion Engine Heat Sink Medium Matter Pod Signal Interpreter Targeting Computer [Rating: 15] Favorites ----------- Power Ion Engine Engine Ion Engine Propulsion Wheel Wheel Wheel Utility Small Storage Unit Device ECM Suite Storage Small Storage Unit Processor Targeting Computer Weapon Medium Laser Energy Gun Medium Laser Ballistic Gun Assault Rifle Launcher Grenade Launcher Build | -11 -10 -10 -8 -8 ------- Run | Yrd Mat Sub Mat Gar Slots Evolved 4 | . . . 4 . Power 1 | . . . 1 . Propulsion . | . . . . . Utility 2 | . . . 2 . Weapon 1 | . . . 1 . Parts Attached 17 | 6 2 1 4 4 Power 3 | 1 . . 1 1 Engine 3 | 1 . . 1 1 Core . | . . . . . Reactor . | . . . . . Propulsion 3 | 2 . 1 . . Treads . | . . . . . Leg . | . . . . . Wheel 3 | 2 . 1 . . Hover . | . . . . . Flight . | . . . . . Utility 6 | 1 1 . 2 2 Device 4 | . 1 . 2 1 Storage 1 | 1 . . . . Processor 1 | . . . . 1 Hackware . | . . . . . Protection . | . . . . . Artifact . | . . . . . Weapon 5 | 2 1 . 1 1 Energy Gun 2 | 1 . . 1 . Energy Cannon . | . . . . . Ballistic Gun 2 | 1 . . . 1 Ballistic Cannon . | . . . . . Launcher 1 | . 1 . . . Special Weapon . | . . . . . Impact Weapon . | . . . . . Slashing Weapon . | . . . . . Piercing Weapon . | . . . . . Special Melee Weapon . | . . . . . Unidentified Prototypes . | . . . . . Parts Lost 13 | . . 1 2 10 Power 2 | . . . . 2 Propulsion 3 | . . 1 . 2 Utility 3 | . . . . 3 Weapon 5 | . . . 2 3 Highest Loss Streak 10 | . . 1 2 10 To Critical Strikes . | . . . . . Average Backups 5 | . 5 7 5 4 Power . | . 1 1 . . Propulsion . | . . . . . Utility 3 | . 2 4 4 3 Weapon 1 | . 1 2 1 . Tool/Special . | . . . . . Unused Backups 2 | . . . . 2 Power . | . . . . . Propulsion . | . . . . . Utility 2 | . . . . 2 Weapon . | . . . . . Tool/Special . | . . . . . Average Slot Usage (%) 96 | . 98 93 96 94 Engine 15 | . 14 14 18 16 Wheel 22 | . 28 22 18 16 Device 18 | . 12 14 25 25 Storage 11 | . 14 14 9 9 Energy Gun 7 | . 1 . 8 16 Ballistic Gun 11 | . 14 14 9 8 Launcher 8 | . 12 14 8 . Peak Build Rating 15 | 6 7 7 12 15 Average Rating 9 | 4 6 6 11 13 On Entrance 6 | . 6 7 7 10 Naked Turns . | . . . . . Heaviest Build 29 | 14 17 17 25 29 Greatest Support 26 | 26 26 26 20 20 Greatest Overweight (x) 3 | . . 1 1 3 Average Overweight (x) . | . . . 1 1 Largest Inventory Capacity 8 | 8 8 8 8 8 Average Capacity 7 | 6 8 8 8 8 Most Carried 8 | 2 8 8 7 5 Average Carried 5 | 1 5 7 5 4 Final Capacity 8 | 8 8 8 8 5 Final Carried 8 | 2 8 8 6 2 Class Distribution -------------------- 58% | Mutant 39% | Skirmisher Dominant Class ---------------- Mutant | -10/Materials Mutant | -10/Subcaves Skirmisher | -8/Materials Skirmisher | -8/Garrison Resources | -11 -10 -10 -8 -8 ----------- Run | Yrd Mat Sub Mat Gar Matter Collected 658 | 227 32 92 . 307 Remotely . | . . . . . Salvage Created 369 | . 33 120 . 216 Parts 32 | . 6 10 . 16 Haulers Intercepted . | . . . . . Recyclers Shooed . | . . . . . Parts Field Recycled . | . . . . . Retrieved Matter . | . . . . . Parts Self-Destructed 6 | . . 6 . . Prevented . | . . . . . Kills | -11 -10 -10 -8 -8 ------- Run | Yrd Mat Sub Mat Gar Combat Hostiles Destroyed 19 | . 3 8 . 8 Guns 8 | . . . . 8 AOE 11 | . 3 8 . . Classes Destroyed 4 | . 2 1 . 1 Operator 1 | . 1 . . . Swarmer 15 | . 3 6 . 6 Sentry 2 | . . . . 2 Subdweller 2 | . . 2 . . Best Kill Streak 4 | . 3 3 . 4 Combat Bots Only 4 | . 3 3 . 4 Max Kills in Single Turn 3 | . 3 3 . 1 Gunslinging . | . . . . . Exploded 3 | . 3 3 . . Melee . | . . . . . Uniques/NPCs Destroyed . | . . . . . Combat | -11 -10 -10 -8 -8 -------- Run | Yrd Mat Sub Mat Gar Hostile Shots Fired 152 | . 9 28 8 107 Missed 42 | . 3 10 3 26 Hits 110 | . 6 18 5 81 Projectile 110 | . 6 18 5 81 Critical Strikes 6 | . . . . 6 Damage Taken 1742 | . 123 312 73 1234 Core 723 | . 43 127 13 540 Absorbed by Shields . | . . . . . Core Remaining (%) 66 | 100 . 32 . . Volleys Fired 39 | . 6 12 . 21 Largest 3 | . 2 2 . 3 Hottest 125 | . 50 50 . 125 Shots Fired 81 | . 10 18 . 53 Gun 71 | . 6 12 . 53 Cannon . | . . . . . Launcher 10 | . 4 6 . . Special . | . . . . . Kinetic 39 | . 6 12 . 21 Thermal 32 | . . . . 32 Explosive 10 | . 4 6 . . Electromagnetic . | . . . . . Robot Hit Streak 5 | . 2 3 . 5 Robot Miss Streak 6 | . 6 4 . 6 Penetration Max . | . . . . . Secondary Targets 1 | . . . . 1 Max Gunslinging Chain 1 | . . . . 1 Shots Hit Robots 40 | . 3 6 . 31 Core Hits 32 | . 5 12 . 15 Critical Kills . | . . . . . Critical Parts Destroyed . | . . . . . Critical Strikes 2 | . . . . 2 Burn 2 | . . . . 2 Melee Attacks . | . . . . . Impact . | . . . . . Slashing . | . . . . . Piercing . | . . . . . Sneak Attacks . | . . . . . Combat Hostiles . | . . . . . Follow-up Attacks . | . . . . . Damage Inflicted 1205 | . 247 485 3 470 Guns 550 | . 24 56 . 470 Cannons . | . . . . . Explosions 652 | . 223 429 . . Melee . | . . . . . Ramming 3 | . . . 3 . Kinetic 310 | . 24 56 . 230 Thermal 240 | . . . . 240 Explosive 652 | . 223 429 . . Electromagnetic . | . . . . . Impact . | . . . . . Slashing . | . . . . . Piercing . | . . . . . Highest Corruption 1 | . . . . 1 Average Corruption 1 | . . . . 1 Corruption Purged . | . . . . . Corruption Blocked . | . . . . . Overload Shots . | . . . . . Overflow Damage . | . . . . . Projectiles . | . . . . . Explosions . | . . . . . Melee . | . . . . . Knockbacks . | . . . . . Impact . | . . . . . Kinetic . | . . . . . Secondary . | . . . . . Self-Inflicted Damage 104 | . 76 27 1 . Shots 5 | . 3 2 . . Rammed 2 | . . . 2 . Targets Rammed 2 | . . . 2 . Kicked . | . . . . . Crushed . | . . . . . Highest Temperature 461 | . . . . 461 Average Temperature 144 | . . . . 144 Received Heat Transfer 666 | . . . 45 621 Effects 3 | . . . . 3 Shutdowns 1 | . . . . 1 Interference 2 | . . . . 2 Siege Activations . | . . . . . Martial Activations . | . . . . . Shielding Activations . | . . . . . Robots Disrupted . | . . . . . Combat Hostiles . | . . . . . Robots Corrupted . | . . . . . Combat Hostiles . | . . . . . Parts Fried . | . . . . . Impact Corruptions . | . . . . . Robots Melted . | . . . . . Combat Hostiles . | . . . . . Parts Melted . | . . . . . Heat Transferred 851 | . . . . 851 Parts Sabotaged . | . . . . . Parts Stolen . | . . . . . Parts Stripped . | . . . . . Power Chain Reactions . | . . . . . Alert | -11 -10 -10 -8 -8 ------- Run | Yrd Mat Sub Mat Gar Maximum Alert Level 1 | . . . . 1 Low Security (%) 87 | 100 100 . 100 67 Level 1 12 | . . . . 32 Level 2 . | . . . . . Level 3 . | . . . . . Level 4 . | . . . . . Level 5 . | . . . . . High Security . | . . . . . Max Security . | . . . . . Peak Influence 278 | . 92 . 41 278 Initial 41 | . . . 41 . Average 72 | . 29 . 21 142 Influence Increases 578 | . 140 140 . 298 Destroy 0b10 Robot/C 460 | . 60 120 . 280 Destroy 0b10 Robot/NC 5 | . 5 . . . Destroy Leader 40 | . 10 20 . 10 Allied During Kill 8 | . . . . 8 Successful Hack 2 | . 2 . . . Disable Machine 45 | . 45 . . . Destroy Structure 18 | . 18 . . . Influence Decreases 400 | . 90 110 80 120 Entered New Map 64 | . . 25 39 . Time Decay 215 | . 90 85 40 . Lost Part 101 | . . . 1 100 Lost Ally 20 | . . . . 20 Squads Dispatched 2 | . 1 . 1 . Investigation . | . . . . . Extermination . | . . . . . Reinforcement 2 | . 1 . 1 . Assault . | . . . . . Garrison . | . . . . . Intercept . | . . . . . Searches Triggered . | . . . . . Construction Impeded . | . . . . . Haulers Reinforced . | . . . . . Active Scanning Responses . | . . . . . Cargo Convoy Interrupts . | . . . . . Stealth | -11 -10 -10 -8 -8 --------- Run | Yrd Mat Sub Mat Gar Distress Signals 1 | . 1 . . . Communications Jammed . | . . . . . Distress Signals . | . . . . . Times Spotted 41 | . 8 9 4 20 Peak Tracking Total 8 | . 4 4 4 8 Tactical Retreats 4 | . 2 1 . 1 Traps | -11 -10 -10 -8 -8 ------- Run | Yrd Mat Sub Mat Gar Traps Triggered 2 | . . . . 2 Indirectly . | . . . . . Trap Hack Attempts . | . . . . . Triggered . | . . . . . Disarmed . | . . . . . Reprogrammed . | . . . . . Reused . | . . . . . Traps Extracted . | . . . . . Installed . | . . . . . Triggered . | . . . . . Machines | -11 -10 -10 -8 -8 ---------- Run | Yrd Mat Sub Mat Gar Machines Disabled 3 | . 3 . . . Max in Single Turn 1 | . 1 . . . Machines Repaired . | . . . . . Machines Dismantled . | . . . . . Machines Sabotaged . | . . . . . Overloaded Fab Kills . | . . . . . Hacking | -11 -10 -10 -8 -8 --------- Run | Yrd Mat Sub Mat Gar Machines Accessed 6 | . 4 . 1 1 Terminals 4 | . 3 . . 1 Fabricators . | . . . . . Repair Stations . | . . . . . Recycling Units 1 | . 1 . . . Scanalyzers . | . . . . . Garrison Access 1 | . . . 1 . Total Hacks 12 | . 8 . 2 2 Successful 6 | . 4 . 1 1 Failed 6 | . 4 . 1 1 Catastrophic . | . . . . . Database Lockouts . | . . . . . Manual 2 | . 2 . . . Terminals 9 | . 7 . . 2 Fabricators . | . . . . . Repair Stations . | . . . . . Recycling Units 1 | . 1 . . . Scanalyzers . | . . . . . Garrison Access 2 | . . . 2 . Terminal Hacks 4 | . 3 . . 1 Record 2 | . 2 . . . Prototype ID Bank 1 | . 1 . . . Open Door 1 | . . . . 1 Fabricator Hacks . | . . . . . Repair Station Hacks . | . . . . . Recycling Unit Hacks . | . . . . . Scanalyzer . | . . . . . Garrison Access Hacks 1 | . . . 1 . Unlock Access 1 | . . . 1 . Unauthorized Hacks . | . . . . . Terminals . | . . . . . Fabricators . | . . . . . Repair Stations . | . . . . . Recycling Units . | . . . . . Scanalyzers . | . . . . . Garrison Access . | . . . . . Data Cores Recovered 1 | . 1 . . . Used . | . . . . . Hacking Detections 5 | . 3 . 1 1 Full Trace Events . | . . . . . Feedback Events . | . . . . . Feedback Blocked . | . . . . . Robot Schematics Acquired . | . . . . . Robots Built . | . . . . . Authchips . | . . . . . Time . | . . . . . Total Robot Build Rating . | . . . . . Part Schematics Acquired . | . . . . . Parts Built . | . . . . . Authchips . | . . . . . Time . | . . . . . Total Part Build Rating . | . . . . . Parts Repaired . | . . . . . Time . | . . . . . Parts Recycled . | . . . . . Recycled Matter . | . . . . . Retrieved Matter . | . . . . . Retrieved Components . | . . . . . Parts Scanalyzed . | . . . . . Part Schematics Acquired . | . . . . . Parts Damaged . | . . . . . Bothacking | -11 -10 -10 -8 -8 ------------ Run | Yrd Mat Sub Mat Gar Used RIF Installer . | . . . . . Robots Hacked . | . . . . . Non-combat . | . . . . . Combat . | . . . . . Robot Hacks Applied . | . . . . . Relay Couplers Released . | . . . . . Fabnet Peak Effective % . | . . . . . Robots Rewired . | . . . . . Allies Hacked . | . . . . . Hacks Repelled . | . . . . . Allies | -11 -10 -10 -8 -8 -------- Run | Yrd Mat Sub Mat Gar Total Allies 1 | . . . . 1 Largest Group 1 | . . . . 1 Highest-Rated Group 31 | . . . . 31 Highest-Rated Ally 31 | . . . . 31 Total Orders . | . . . . . Ally Attacks 24 | . . . . 24 Total Damage 297 | . . . . 297 Kills 6 | . . . . 6 Allies Corrupted . | . . . . . Allies Melted . | . . . . . Intel | -11 -10 -10 -8 -8 ------- Run | Yrd Mat Sub Mat Gar Active Infowar (turns) 918 | . 312 206 95 305 Optics 381 | . . . 93 288 Sensors 389 | . . . 94 295 ECM 918 | . 312 206 95 305 Robot Analysis Total . | . . . . . Derelict Logs Recovered . | . . . . . Drone Launches . | . . . . . Drone Recoveries . | . . . . . Exploration | -11 -10 -10 -8 -8 ------------- Run | Yrd Mat Sub Mat Gar Turns Passed 1010 | 39 350 206 95 320 Spaces Moved 736 | 33 275 180 42 206 Core 9 | 3 . . . 6 Treads . | . . . . . Legs . | . . . . . Wheels 727 | 30 275 180 42 200 Hover . | . . . . . Flight . | . . . . . Fastest Speed 50 | 50 90 80 95 80 Average Speed 92 | 86 90 90 95 96 Slowest Speed 200 | 100 90 95 95 200 Overloaded Moves . | . . . . . Propulsion Burnouts . | . . . . . Robots Hopped . | . . . . . Potential Cave-ins . | . . . . . Cave-ins Triggered . | . . . . . Exploration Rate (%) 20 | 4 38 23 8 29 Regions Visited 4 Branch Regions 1 Pre-discovered Areas 1 | . . 1 . . Known Exits Taken 1 | . . . 1 . Unknown Exits Taken 3 | 1 1 1 . . Scrap Searched 1 | . . 1 . . Spaces Dug 4 | . . 4 . . Terrain Destroyed 48 | . 17 31 . . Melee . | . . . . . Projectile . | . . . . . AOE 48 | . 17 31 . . Terrain Rammed . | . . . . . Walls Destroyed . | . . . . . Machines Disabled . | . . . . . Actions | -11 -10 -10 -8 -8 --------- Run | Yrd Mat Sub Mat Gar Total 998 | 40 366 205 97 290 Wait 177 | . 78 12 47 40 Move 733 | 32 274 179 42 206 Hop . | . . . . . Pick Up 12 | 2 6 1 2 1 Fast Attach 7 | 6 1 . . . Attach 10 | . . 1 4 5 Detach . | . . . . . Swap 2 | . 1 . . 1 Drop . | . . . . . Fire 39 | . 6 12 . 21 Melee . | . . . . . Ram 2 | . . . 2 . Kick . | . . . . . Crush . | . . . . . Escape Stasis 16 | . . . . 16 Rewire . | . . . . . Trap . | . . . . . Miscellaneous . | . . . . . Route ------- -11/Scrapyard -10/Materials (discovered 3 exits: [*Min x2] / [*Sub]) -10/Subcaves -8/Materials -8/Garrison History --------- Turn | Location | Event 22 | -11/Scrapyard | Discovered new exit (range 15) 40 | -11/Scrapyard | Entered Materials 186 | -10/Materials | Discovered new exit (range 6) 258 | -10/Materials | Discovered new exit (range 16) 268 | -10/Materials | Discovered new exit (range 16) 318 | -10/Materials | Build established: Mutant 390 | -10/Materials | Entered Subcaves 391 | -10/Subcaves | Approached by a straggling Scientist 392 | -10/Subcaves | Learned location of Zion (-6) 392 | -10/Subcaves | Met a Zionite searching for "candidates" 459 | -10/Subcaves | Core integrity fell below 50% 553 | -10/Subcaves | Shifting Twisted Machinery released Sub. Optics 561 | -10/Subcaves | Shifting Twisted Machinery released Mak. Leg 588 | -10/Subcaves | Shifting Twisted Machinery released Sub. Power Source 592 | -10/Subcaves | Discovered new exit (range 6) 596 | -10/Subcaves | Entered Materials 596 | -8/Materials | Evolved 4 slots: Power x1, Utility x2, Weapon x1 691 | -8/Materials | Identified exit to Garrison 691 | -8/Materials | Entered Garrison 707 | -8/Garrison | Triggered checkpoint 763 | -8/Garrison | Rescued a captive Derelict 855 | -8/Garrison | Triggered checkpoint 884 | -8/Garrison | Build established: Skirmisher 957 | -8/Garrison | Triggered checkpoint 979 | -8/Garrison | Triggered checkpoint 999 | -8/Garrison | Core integrity fell below 50% 1005 | -8/Garrison | Core integrity fell below 20% 1011 | -8/Garrison | Destroyed by P-60 Hacker with Shock Rifle Last Messages --------------- 00991_ Minigun destroyed. 00992_ Med. Laser destroyed. 00993_ G-50 Soldier heat short circuits Carbon-fiber Leg. 00993_ Acquired 13 matter. 00993_ Critical hit (Burn: +37). 00995_ Acquired 11 matter. 00995_ P-60 Hacker resets G-47 Trooper, system corruption cleaned. 00996_ Power failure, Imp. Ion Engine shutdown. 00996_ Overheating: System interference. 00996_ ECM Suite temporarily disabled. 00997_ Imp. Ion Engine destroyed. 00997_ Med. Laser destroyed. 01000_ Wheel destroyed. 01001_ G-50 Soldier heat spikes uncontrollably. 01001_ G-50 Soldier overheating. 01002_ Overheating: System interference. 01002_ Targeting Computer temporarily disabled. 01002_ G-50 Soldier overheating. 01006_ Critical hit (Burn: +37). 01011_ Sml. Storage Unit destroyed. Map ----- +----------------------------------------------------+ | ?????????????????????????????????????????????????? | | ?????????????????????????????????????????????????? | | ?????????????????????????????????????????????????? | | ?????????????????????????????????????????????????? | | ?????????????????????????????????????????????????? | | ?????????????????????????????????????????????????? | | ?????????????????????????????????????????????????? | | ?????????????????????????????????????????????????? | | ?????????????????????????????????????????????????? | | ?????????????????????????????????????????????????? | | ?????????????????????????????????????????????????? | | ?????????????????????????????????????????????????? | | ?????????????????????????????????????????????????? | | ?????????????????????????????????????????????????? | | ?????????????????????????????????????????????????? | | ?????????????????????????????????????????????????? | | ?????????????????????????????????????????????????? | | ?????????????????????????????????????????????????? | | ????????????????????????#####????????????????????? | | ???????????????????????? #????????????????????? | | ???????????????????????? #????????????????????? | | ???????????????????????? #????????????????????? | | ????????????????????????# #????????????????????? | | ????????????????????????# #????????????????????? | | ????????????????????????# #????????????????????? | | ????????????????????????#@ #?????????#??????????? | | ????????????????????????# #???????? #??????????? | | ????????????????????????# #??????? #??????????? | | ????????????????????????# ##""""## ##?????????? | | ????????????????????????# ^ #?????????? | | ????????????????????????# #?????????? | | ????????????????????????# ^ #?????????? | | ????????????????????????# ## ## #?????????? | | ??????????????????????### gg## ## #?????????? | | ??????????????????????# "?????????? | | ??????????????????????# %g "?????????? | | ??????????????????????# pg* "?????????? | | ??????????????????????# g* = "?????????? | | ??????????????????????### ## ## #?????????? | | ????????????????????????# ## ## ######????? | | ????????????????????????# ??? | | ????????????????????????# ??? | | ????????????????????????# ??? | | ????????????????????????# ## ##########?????? | | ????????????????????????# #? #??????????????? | | ????????????????????????# #??####??????????????? | | ????????????????????????# #????????????????????? | | ????????????????????????# #????????????????????? | | ????????????????????????# #????????????????????? | | ????????????????????????#% #????????????????????? | +----------------------------------------------------+ Best States ------------- Heat Dissipation 41 Energy Generation 17 Energy Capacity 415 Matter Stores 300 Matter Capacity 300 Sight Range 21 Robot Scan Range 14 Terrain Scan Density 10 ECM Strength 1 Evasion (%) 44 Targeting Accuracy 5 Item Schematics ----------------- None Robot Schematics ------------------ None Fabricated ------------ Nothing Repaired ---------- Nothing Alien Tech Used ----------------- None Achievements -------------- None Challenges ------------ None Game ------ Seed AluminumSpacefoldSpoofer Manual? 0 Play Time 00:15:42 Cumulative 16.5 hours Start 2025.05.15 @ 22:50:16 End 2025.05.15 @ 23:06:16 Sessions 1 Manual Loads 0 Difficulty Rogue Special Mode None Game No. 34 Rogue 34 Adventurer 0 Explorer 0 Win Type - Total 0 Types 0/0/0/0/0/0/0/0/0/0 Lore% 23 Gallery% 17 Achievement% 18 Wizard Run 0 Options --------- Layout 1 ASCII 0 Keyboard 0 Movement Mouse Keybinds 0 Fullscreen 1 Font 32/SmallcapsGlow Map View 77x35 Zoom Use 0% Tactical HUD 1 Map Filters NONE Filters NONE Steam 1 RUN: adb0dcea-98d7-42c8-85aa-a334a4867dd2